{"text_format":"1","workbook":"xlsx","n_sheets":1,"sheets":["A"],"not_rendered":{"charts":0,"images":0,"macros":0,"external_links":0,"defined_names":0,"comments":0,"pivot_tables":0},"unopened":[],"bounds":{"document_bytes":16777216,"sheet_cells":100000,"rows_first":2000,"rows_last":500,"rows_between":2000,"halvings":0,"cell_chars":16384,"cell_head_chars":4096},"cells_cut":0,"cells_raw":0,"read":"whole","date_system":"1900"}

{"sheet":"A","index":0,"n_rows":61,"n_cols":11,"rows_kept":61,"cut":false,"hidden":false,"merged":[]}
["LOT","HR PAY","DECAL","DISABLD","RESERV","SPECIAL","MC","QS","PARK $ RIDE","DAYCARE","TOTAL"]
["A",null,112,6,null,null,null,6,null,null,{"$f":"SUM(B2:J2)","v":124}]
["B",null,142,1,null,2,8,null,null,null,153]
["C",null,72,3,null,3,null,4,null,null,82]
["D",null,null,14,6,9,null,null,null,null,29]
["E",null,28,null,null,null,null,null,null,null,28]
["F",91,46," ",null,null,null,2,null,null,139]
["G",null,91,1,17,0,null,null,null,null,109]
["H",null,263,7,null,5,null,8,null,null,283]
["J",null,98,3,null,5,6,15,null,null,127]
["J-1",null,null,null,20,null,null,null,null,null,20]
["K",null,40,0,null,null,null,null,null,null,40]
["K-1",null,null,4,42,4,null,null,null,null,50]
["L",null,36,1,8,1,10,7,null,null,63]
["M",null,77,null,null,null,5,null,null,null,82]
["M-1",null,56,null,null,null,null,null,null,null,56]
["N",null,null,null," ",null,null," ",null,null,0]
["P",null,432,3,52,null,5,null,null,null,492]
["R",0,208,9,112,null," ",null,null,null,329]
["S",45,null,4,null,null,null,null,null,null,49]
["T",null,74,1,null,null,null,7,null,null,82]
["U",null,133,null,null,null,null,5,null,null,138]
["V",80,null,8,null,null,9,11,null,null,108]
["W",null,186,3,30,2,10,null,null,null,231]
["Y",null,72,3,14,5,0,4,null,6,104]
["Z",null,113,5,3,1,null,4,null,null,126]
["5th STR",null,41,null,null,null,null,null,null,null,41]
["6TH STR",null,78,null,6,2,null,4,null,null,90]
["BECKWITH",null,null,null,null,null,null,null,null,null,0]
["CD B >P",null,113,null,null,null,null,null,null,null,113]
["CD 32>V",null,120,null,null,null,null,null,null,null,120]
["CHEM/P",null,null,null,null,4,null,null,null,null,4]
["CONNELL",null,44,null,9,1,null,null,null,null,54]
["DORNBLASER NORTH",null,null,7,null,null,null,null,136,null,{"$f":"SUM(B34:I34)","v":143}]
["DORNBLASER SOUTH",null,null,10,null,null,null,null,258,null,{"$f":"SUM(B35:I35)","v":268}]
["NORTH RIVER P&R",null,null,null,null,null,null,null,257,null,{"$f":"SUM(B36:I36)","v":257}]
["EDDY AV",null,38,2,8,4,null,null,null," ",{"$f":"SUM(B37:J37)","v":52}]
["ELROD",16,null,2,null,null,12,null,null,null,30]
["FA OVAL",null,null,2,null,null,18,4,null,null,24]
["FINE ART",null,null,4,null,8,null,null,null,null,12]
["HLTH SCI",null,null,null,null,2,null,null,null,null,2]
["HT PLNT",null,null,null,null,4,null,null,null,null,4]
["LIB ART",null,null,5,null,2,null,null,null,null,7]
["LODGE",39,null,5,3,12,null,6,null,null,65]
["MAU M>L",null,0,8,40,null,null,10,null," ",58]
["PARTV P",null,null,null,null,4,null,null,null,null,4]
["PH/PSYC",null,null,2,null,2,null,null,null,null,4]
["PP CPD",null,null,null,null,172,null,null,null,null,172]
["RANKIN",null,null,null,null,null,null,null,null,null,0]
["SCI CMP",null,null,null,null,3,null,null,null,null,3]
["SCH GYM",null,null,null,null,10,null,null,null,null,10]
["SHS ALY",null,null,null,18,1,null,null,null,null,19]
["STD CPD",null,null,null,null,35,null,null,null,null,35]
["SOC SCI",null,null,8,6,7,null,2,null,null,23]
["UC PIT",null,null,null,10,7,1,null,null,null,18]
["VB STR",null,21,5,null,3,null,null,null,null,29]
["1000 BECK",null,null,1,7,null,null,null,null,null,8]
[null,{"$f":"SUM(B2:B57)","v":271},2734,137,411,320,84,99,{"$f":"SUM(I2:I57)","v":651},6,4713]
[]
[]
["Lost Decal spaces 178"]